fUSD/lending_fUSD_20240116
["ID","MTS","AMOUNT","RATE_DAILY","PERIOD"]
[311772490,1705384256483,-572.45,0.00022696,2]
[311772491,1705384256492,-500.0,0.00022696,2]
[311772492,1705384256502,-500.0,0.00022696,2]
[311772493,1705384256511,-6396.96,0.00022696,2]
[311772494,1705384256520,-500.0,0.00022696,2]
[311772495,1705384256529,-500.0,0.00022696,2]
[311772496,1705384256538,-9892.67,0.00022696,2]
[311772497,1705384256548,-512.72,0.00022696,2]
[311772498,1705384256558,-500.0,0.00022696,2]
[311772499,1705384256571,-510.48,0.00022696,2]
[311772500,1705384256580,-500.0,0.00022696,2]
[311772501,1705384256589,-1373.3,0.00022696,2]
[311772502,1705384256599,-1446.59,0.00022696,2]
[311772503,1705384256608,-500.0,0.00022696,2]
[311772504,1705384256617,-1283.05,0.00022696,2]
[311772505,1705384256626,-1084.57,0.00022696,2]
[311772506,1705384256635,-500.0,0.00022696,2]
[311772507,1705384256645,-511.91,0.00022696,2]
[311772508,1705384256654,-261.32334078,0.00022696,2]
[311772509,1705384256664,-500.0,0.00022696,2]
[311772510,1705384256674,-500.0,0.00022696,2]
[311772511,1705384256683,-500.0,0.00022696,2]
[311772512,1705384256693,-5432.58,0.00022696,2]
[311772513,1705384256702,-500.0,0.00022696,2]
[311772514,1705384256711,-3291.72,0.00022696,2]
[311772515,1705384256721,-500.0,0.00022696,2]
[311772516,1705384256730,-500.0,0.00022696,2]
[311772517,1705384256739,-642.24,0.00022696,2]
[311772518,1705384256749,-500.0,0.00022696,2]
[311772519,1705384256758,-16986.28,0.00022696,2]
[311772520,1705384256767,-500.0,0.00022696,2]
[311772521,1705384256776,-500.0,0.00022696,2]
[311772522,1705384256785,-1360.97,0.00022696,2]
[311772523,1705384256794,-500.0,0.00022696,2]
[311772524,1705384256803,-770.78,0.00022696,2]
[311772525,1705384256812,-390.85287352,0.00022696,2]
[311772526,1705384256822,-1230.75,0.00022696,2]
[311772527,1705384256831,-500.0,0.00022696,2]
[311772528,1705384256840,-500.0,0.00022696,2]
[311772529,1705384256849,-500.0,0.00022696,2]
[311772530,1705384256859,-500.0,0.00022696,2]
[311772531,1705384256869,-1054.41,0.00022696,2]
[311772532,1705384256878,-1560.12,0.00022696,2]
[311772533,1705384256888,-854.04,0.00022696,2]
[311772534,1705384256901,-500.0,0.00022696,2]
[311772535,1705384256910,-500.0,0.00022696,2]
[311772536,1705384256919,-500.0,0.00022696,2]
[311772537,1705384256929,-500.0,0.00022696,2]
[311772538,1705384256938,-500.0,0.00022696,2]
[311772539,1705384256949,-500.0,0.00022696,2]
[311772540,1705384256959,-2424.1,0.00022696,2]
[311772541,1705384256969,-1255.23,0.00022696,2]
[311772542,1705384256978,-1106.89,0.00022696,2]
[311772543,1705384256987,-656.19,0.00022696,2]
[311772544,1705384256999,-500.0,0.00022696,2]
[311772545,1705384257008,-500.0,0.00022696,2]
[311772546,1705384257018,-500.0,0.00022696,2]
[311772547,1705384257027,-836.27,0.00022696,2]
[311772548,1705384257037,-500.0,0.00022696,2]
[311772549,1705384257046,-500.0,0.00022696,2]
[311772550,1705384257056,-956.94,0.00022696,2]
[311772551,1705384257065,-500.0,0.00022696,2]
[311772552,1705384257075,-598.05,0.00022696,2]
[311772553,1705384257085,-899.51,0.00022696,2]
[311772554,1705384257094,-500.0,0.00022696,2]
[311772555,1705384257104,-500.0,0.00022696,2]
[311772556,1705384257113,-511.01,0.00022696,2]
[311772557,1705384257123,-2036.34,0.00022696,2]
[311772558,1705384257135,-2130.1,0.00022696,2]
[311772559,1705384257145,-500.0,0.00022696,2]
[311772560,1705384257155,-1340.26,0.00022696,2]
[311772561,1705384257165,-801.61,0.00022696,2]
[311772562,1705384257174,-500.0,0.00022696,2]
[311772563,1705384257183,-500.0,0.00022696,2]
[311772564,1705384257192,-500.0,0.00022696,2]
[311772565,1705384257202,-503.37,0.00022696,2]
[311772566,1705384257211,-1005.16,0.00022696,2]
[311772567,1705384257220,-3319.37,0.00022696,2]
[311772568,1705384257230,-500.0,0.00022696,2]
[311772569,1705384257240,-500.0,0.00022696,2]
[311772570,1705384257250,-1017.46,0.00022696,2]
[311772571,1705384257259,-812.76,0.00022696,2]
[311772572,1705384257269,-1047.83,0.00022696,2]
[311772573,1705384257278,-500.0,0.00022696,2]
[311772574,1705384257288,-500.0,0.00022696,2]
[311772575,1705384257297,-2010.35,0.00022696,2]
[311772576,1705384257307,-500.0,0.00022696,2]
[311772577,1705384257317,-956.2,0.00022696,2]
[311772578,1705384257327,-500.0,0.00022696,2]
[311772579,1705384257337,-500.0,0.00022696,2]
[311772580,1705384257347,-3354.75,0.00022696,2]
[311772581,1705384257357,-1583.46,0.00022696,2]
[311772582,1705384257366,-923.96,0.00022696,2]
[311772583,1705384257375,-500.0,0.00022696,2]
[311772584,1705384257385,-6046.57,0.00022696,2]
[311772585,1705384257395,-1654.42,0.00022696,2]
[311772586,1705384257404,-2288.39,0.00022696,2]
[311772587,1705384257413,-500.0,0.00022696,2]
[311772588,1705384257422,-500.0,0.00022696,2]
[311772589,1705384257432,-515.94,0.00022696,2]
[311772590,1705384257442,-1139.14,0.00022696,2]
[311772591,1705384257452,-500.0,0.00022696,2]
[311772592,1705384257464,-541.78,0.00022696,2]
[311772593,1705384257475,-500.0,0.00022696,2]
[311772594,1705384257484,-1102.8,0.00022696,2]
[311772595,1705384257494,-742.9,0.00022696,2]
[311772596,1705384257505,-901.15,0.00022696,2]
[311772597,1705384257515,-500.0,0.00022696,2]
[311772598,1705384257525,-500.0,0.00022696,2]
[311772599,1705384257535,-651.35,0.00022696,2]
[311772600,1705384257545,-1633.52,0.00022696,2]
[311772601,1705384257554,-500.0,0.00022696,2]
[311772602,1705384257564,-1438.2,0.00022696,2]
[311772603,1705384257573,-3499.46,0.00022696,2]
[311772604,1705384257583,-281.82236787,0.00022697,2]
[311772605,1705384257593,-500.0,0.00022697,2]
[311772606,1705384257605,-538.67,0.00022697,2]
[311772607,1705384257614,-731.3,0.00022697,2]
[311772608,1705384257623,-636.08,0.00022697,2]
[311772609,1705384257632,-500.0,0.00022697,2]
[311772610,1705384257641,-500.0,0.00022697,2]
[311772611,1705384257650,-500.0,0.00022697,2]
[311772612,1705384257659,-500.0,0.00022697,2]
[311772613,1705384257669,-500.0,0.00022697,2]
[311772614,1705384257680,-500.0,0.00022697,2]
[311772615,1705384257691,-640.13,0.00022697,2]
[311772616,1705384257700,-500.0,0.00022697,2]
[311772617,1705384257710,-500.0,0.00022697,2]
[311772618,1705384257719,-652.16,0.00022697,2]
[311772619,1705384257729,-500.0,0.00022697,2]
[311772620,1705384257738,-559.21,0.00022697,2]
[311772621,1705384257748,-500.0,0.00022697,2]
[311772622,1705384257758,-533.28,0.00022697,2]
[311772623,1705384257767,-520.8,0.00022697,2]
[311772624,1705384257777,-500.0,0.00022697,2]
[311772625,1705384257786,-500.0,0.00022697,2]
[311772626,1705384257796,-500.0,0.00022697,2]
[311772627,1705384257806,-500.0,0.00022697,2]
[311772628,1705384257816,-532.48,0.00022697,2]
[311772629,1705384257825,-500.0,0.00022697,2]
[311772630,1705384257837,-560.31,0.00022697,2]
[311772631,1705384257846,-517.27,0.00022697,2]
[311772632,1705384257856,-500.0,0.00022697,2]
[311772633,1705384257866,-657.14,0.00022697,2]
[311772634,1705384257875,-624.96,0.00022697,2]
[311772635,1705384257885,-500.0,0.00022697,2]
[311772636,1705384257894,-500.0,0.00022697,2]
[311772637,1705384257905,-529.67,0.00022697,2]
[311772638,1705384257915,-502.51,0.00022697,2]
[311772639,1705384257924,-500.0,0.00022697,2]
[311772640,1705384257936,-541.21,0.00022697,2]
[311772641,1705384257946,-500.0,0.00022697,2]
[311772642,1705384257956,-620.76,0.00022697,2]
[311772643,1705384257966,-500.0,0.00022697,2]
[311772644,1705384257975,-500.0,0.00022697,2]
[311772645,1705384257985,-500.0,0.00022697,2]
[311772646,1705384257995,-500.0,0.00022697,2]
[311772647,1705384258164,-702.95,0.00022697,2]
[311772648,1705384258184,-500.0,0.00022697,2]
[311772649,1705384258193,-500.0,0.00022697,2]
[311772650,1705384258202,-542.47,0.00022697,2]
[311772651,1705384258212,-503.28,0.00022697,2]
[311772652,1705384258222,-500.0,0.00022697,2]
[311772653,1705384258232,-500.0,0.00022697,2]
[311772654,1705384258241,-500.0,0.00022697,2]
[311772655,1705384258252,-519.88,0.00022697,2]
[311772656,1705384258263,-500.0,0.00022697,2]
[311772657,1705384258274,-500.0,0.00022697,2]
[311772658,1705384258284,-577.49,0.00022697,2]
[311772659,1705384258296,-500.0,0.00022697,2]
[311772660,1705384258306,-580.52,0.00022697,2]
[311772661,1705384258324,-500.0,0.00022697,2]
[311772662,1705384258341,-543.71,0.00022697,2]
[311772663,1705384258350,-500.0,0.00022697,2]
[311772664,1705384258361,-500.0,0.00022697,2]
[311772665,1705384258370,-189.34,0.00022697,2]
[311772666,1705384258379,-500.0,0.00022697,2]
[311772667,1705384258389,-500.0,0.00022697,2]
[311772668,1705384258399,-500.0,0.00022697,2]
[311772669,1705384258409,-500.0,0.00022697,2]
[311772670,1705384258419,-545.97,0.00022697,2]
[311772671,1705384258428,-500.0,0.00022697,2]
[311772672,1705384258438,-573.99,0.00022697,2]
[311772673,1705384258448,-2307.4,0.00022697,2]
[311772674,1705384258457,-500.0,0.00022697,2]
[311772675,1705384258467,-4606.58,0.00022697,2]
[311772676,1705384258477,-597.49,0.00022697,2]
[311772677,1705384258487,-692.02,0.00022697,2]
[311772678,1705384258497,-5828.84,0.00022697,2]
[311772679,1705384258507,-500.0,0.00022697,2]
[311772680,1705384258517,-965.89,0.00022697,2]
[311772681,1705384258526,-500.0,0.00022697,2]
[311772682,1705384258536,-542.2,0.00022697,2]
[311772683,1705384258546,-503.84,0.00022697,2]
[311772684,1705384258556,-500.0,0.00022697,2]
[311772685,1705384258566,-3788.18,0.00022697,2]
[311772686,1705384258575,-500.0,0.00022697,2]
[311772687,1705384258587,-500.0,0.00022697,2]
[311772688,1705384258597,-3513.41,0.00022697,2]
[311772689,1705384258606,-500.0,0.00022697,2]
[311772690,1705384258617,-500.0,0.00022697,2]
[311772691,1705384258626,-3013.25,0.00022697,2]
[311772692,1705384258635,-787.69,0.00022697,2]
[311772693,1705384258645,-985.5,0.00022697,2]
[311772694,1705384258655,-2770.85,0.00022697,2]
[311772695,1705384258665,-500.0,0.00022697,2]
[311772696,1705384258675,-500.0,0.00022697,2]
[311772697,1705384258685,-500.0,0.00022697,2]
[311772698,1705384258695,-7462.29,0.00022697,2]
[311772699,1705384258704,-831.28,0.00022697,2]
[311772700,1705384258714,-500.0,0.00022697,2]
[311772701,1705384258724,-845.09,0.00022697,2]
[311772702,1705384258733,-2576.91,0.00022697,2]
[311772703,1705384258743,-2320.22,0.00022697,2]
[311772704,1705384258753,-500.0,0.00022697,2]
[311772705,1705384258762,-547.06,0.00022697,2]
[311772706,1705384258772,-500.0,0.00022697,2]
[311772707,1705384258783,-1270.0,0.00022697,2]
[311772708,1705384258792,-657.97,0.00022697,2]
[311772709,1705384258802,-509.58,0.00022697,2]
[311772710,1705384258811,-2098.9,0.00022697,2]
[311772711,1705384258822,-2574.35,0.00022697,2]
[311772712,1705384258833,-500.0,0.00022697,2]
[311772713,1705384258842,-500.0,0.00022697,2]
[311772714,1705384258852,-500.0,0.00022697,2]
[311772715,1705384258862,-4678.98,0.00022697,2]
[311772716,1705384258872,-575.29,0.00022697,2]
[311772717,1705384258882,-500.0,0.00022697,2]
[311772718,1705384258891,-1210.84,0.00022697,2]
[311772719,1705384258901,-698.05,0.00022697,2]
[311772720,1705384258911,-3263.35,0.00022697,2]
[311772721,1705384258920,-500.0,0.00022697,2]
[311772722,1705384258930,-620.95,0.00022697,2]
[311772723,1705384258939,-500.0,0.00022697,2]
[311772724,1705384258949,-2075.26,0.00022697,2]
[311772725,1705384258958,-598.52,0.00022697,2]
[311772726,1705384258968,-514.13,0.00022697,2]
[311772727,1705384258978,-1065.16,0.00022697,2]
[311772728,1705384258987,-1300.85,0.00022697,2]
[311772729,1705384258997,-353.76,0.00022697,2]
[311772730,1705384259007,-500.0,0.00022697,2]
[311772731,1705384259016,-705.41,0.00022697,2]
[311772732,1705384259027,-1032.79,0.00022697,2]
[311772733,1705384259037,-912.57,0.00022697,2]
[311772734,1705384259047,-874.61,0.00022697,2]
[311772735,1705384259057,-4376.83,0.00022697,2]
[311772736,1705384259067,-685.53,0.00022697,2]
[311772737,1705384259076,-3315.8,0.00022697,2]
[311772738,1705384259086,-1136.47,0.00022697,2]
[311772739,1705384259096,-500.0,0.00022697,2]
[311772740,1705384259107,-3161.92,0.00022697,2]
[311772741,1705384259126,-500.0,0.00022697,2]
[311772742,1705384259143,-500.0,0.00022697,2]
[311772743,1705384259153,-500.0,0.00022697,2]
[311772744,1705384259163,-500.0,0.00022697,2]
[311772745,1705384259173,-2110.94,0.00022697,2]
[311772746,1705384259183,-600.84,0.00022697,2]
[311772747,1705384259192,-562.48,0.00022697,2]
[311772748,1705384259202,-639.97,0.00022697,2]
[311772749,1705384259212,-1454.18,0.00022697,2]
[311772750,1705384259223,-588.65,0.00022697,2]
[311772751,1705384259234,-500.0,0.00022697,2]
[311772752,1705384259243,-500.0,0.00022697,2]
[311772753,1705384259253,-955.64,0.00022697,2]
[311772754,1705384259263,-503.9,0.00022697,2]
[311772755,1705384259273,-509.03,0.00022697,2]
[311772756,1705384259283,-1148.2,0.00022697,2]
[311772757,1705384259292,-805.89,0.00022697,2]
[311772758,1705384259301,-1016.8,0.00022697,2]
[311772759,1705384259310,-524.1,0.00022697,2]
[311772760,1705384259320,-500.0,0.00022697,2]
[311772761,1705384259329,-500.0,0.00022697,2]
[311772762,1705384259340,-500.0,0.00022697,2]
[311772763,1705384259349,-914.57,0.00022697,2]
[311772764,1705384259358,-626.79,0.00022697,2]
[311772765,1705384259368,-500.0,0.00022698,2]
[311772766,1705384259378,-500.0,0.00022698,2]
[311772767,1705384259387,-500.0,0.00022698,2]
[311772768,1705384259397,-500.0,0.00022698,2]
[311772769,1705384259406,-500.0,0.00022698,2]
[311772770,1705384259416,-500.0,0.00022698,2]
[311772771,1705384259425,-543.43,0.00022698,2]
[311772772,1705384259435,-500.0,0.00022698,2]
[311772773,1705384259445,-500.0,0.00022698,2]
[311772774,1705384259455,-500.0,0.00022698,2]
[311772775,1705384259468,-500.0,0.00022698,2]
[311772776,1705384259477,-500.0,0.00022698,2]
[311772777,1705384259488,-566.26,0.00022698,2]
[311772778,1705384259499,-500.0,0.00022698,2]
[311772779,1705384259509,-500.0,0.00022698,2]
[311772780,1705384259520,-500.0,0.00022698,2]
[311772781,1705384259530,-500.0,0.00022698,2]
[311772782,1705384259543,-500.0,0.00022698,2]
[311772783,1705384259553,-500.0,0.00022698,2]
[311772784,1705384259563,-500.0,0.00022698,2]
[311772785,1705384259572,-500.0,0.00022698,2]
[311772786,1705384259582,-504.65,0.00022698,2]
[311772787,1705384259592,-500.0,0.00022698,2]
[311772788,1705384259602,-500.0,0.00022698,2]
[311772789,1705384259612,-528.67,0.00022698,2]
[311772790,1705384259621,-500.0,0.00022698,2]
[311772791,1705384259631,-269.45330703,0.00022698,2]
[311772792,1705384259641,-546.9,0.00022698,2]
[311772793,1705384259650,-500.0,0.00022698,2]
[311772794,1705384259659,-500.0,0.00022698,2]
[311772795,1705384259669,-500.0,0.00022698,2]
[311772796,1705384259679,-500.0,0.00022698,2]
[311772797,1705384259688,-500.0,0.00022698,2]
[311772798,1705384259698,-500.0,0.00022698,2]
[311772799,1705384259707,-500.0,0.00022698,2]
[311772800,1705384259717,-500.0,0.00022698,2]
[311772801,1705384259727,-527.76,0.00022698,2]
[311772802,1705384259736,-500.0,0.00022698,2]
[311772803,1705384259746,-500.0,0.00022698,2]
[311772804,1705384259756,-500.0,0.00022698,2]
[311772805,1705384259766,-500.0,0.00022698,2]
[311772806,1705384259775,-500.0,0.00022698,2]
[311772807,1705384259785,-500.0,0.00022698,2]
[311772808,1705384259795,-500.0,0.00022698,2]
[311772809,1705384259805,-500.0,0.00022698,2]
[311772810,1705384259815,-500.0,0.00022698,2]
[311772811,1705384259824,-511.43,0.00022698,2]
[311772812,1705384259836,-500.0,0.00022698,2]
[311772813,1705384259845,-550.3,0.00022698,2]
[311772814,1705384259855,-500.0,0.00022698,2]
[311772815,1705384259865,-500.0,0.00022698,2]
[311772816,1705384259874,-500.0,0.00022698,2]
[311772817,1705384259884,-500.0,0.00022698,2]
[311772818,1705384259894,-500.0,0.00022698,2]
[311772819,1705384259903,-500.0,0.00022698,2]
[311772820,1705384259912,-500.0,0.00022698,2]
[311772821,1705384259922,-296.99537998,0.00022698,2]
[311772822,1705384259932,-500.0,0.00022698,2]
[311772823,1705384259943,-500.0,0.00022698,2]
[311772824,1705384259954,-500.0,0.00022698,2]
[311772825,1705384259964,-679.73,0.00022698,2]
[311772826,1705384259973,-749.85,0.00022698,2]
[311772827,1705384259983,-815.57,0.00022698,2]
[311772828,1705384259992,-824.19,0.00022698,2]
[311772829,1705384260002,-500.0,0.00022698,2]
[311772830,1705384260012,-500.0,0.00022698,2]
[311772831,1705384260021,-500.0,0.00022698,2]
[311772832,1705384260031,-500.0,0.00022698,2]
[311772833,1705384260041,-500.0,0.00022698,2]
[311772834,1705384260051,-500.0,0.00022698,2]
[311772835,1705384260061,-500.0,0.00022698,2]
[311772836,1705384260072,-728.18,0.00022698,2]
[311772837,1705384260082,-500.0,0.00022698,2]
[311772838,1705384260092,-500.0,0.00022698,2]
[311772839,1705384260102,-652.53,0.00022698,2]
[311772840,1705384260112,-546.93,0.00022698,2]
[311772841,1705384260121,-500.0,0.00022698,2]
[311772842,1705384260132,-500.0,0.00022698,2]
[311772843,1705384260141,-500.0,0.00022698,2]
[311772844,1705384260151,-500.0,0.00022698,2]
[311772845,1705384260161,-348.94443941,0.00022698,2]
[311772846,1705384260171,-500.0,0.00022698,2]
[311772847,1705384260181,-500.0,0.00022698,2]
[311772848,1705384260191,-500.0,0.00022698,2]
[311772849,1705384260201,-500.0,0.00022698,2]
[311772850,1705384260210,-500.0,0.00022698,2]
[311772851,1705384260221,-500.0,0.00022698,2]
[311772852,1705384260230,-533.95,0.00022698,2]
[311772853,1705384260240,-500.0,0.00022698,2]
[311772854,1705384260250,-500.0,0.00022698,2]
[311772855,1705384260260,-2227.75,0.00022698,2]
[311772856,1705384260270,-500.0,0.00022698,2]
[311772857,1705384260279,-500.0,0.00022698,2]
[311772858,1705384260289,-500.0,0.00022698,2]
[311772859,1705384260298,-500.0,0.00022698,2]
[311772860,1705384260308,-500.0,0.00022698,2]
[311772861,1705384260318,-500.0,0.00022698,2]
[311772862,1705384260327,-214.94,0.00022698,2]
[311772863,1705384260339,-500.0,0.00022698,2]
[311772864,1705384260664,-1176.23,0.00022698,2]
[311772865,1705384260675,-500.0,0.00022698,2]
[311772866,1705384260685,-500.0,0.00022698,2]
[311772867,1705384260694,-500.0,0.00022698,2]
[311772868,1705384260704,-553.61,0.00022698,2]
[311772869,1705384260714,-500.0,0.00022698,2]
[311772870,1705384260723,-520.86,0.00022698,2]
[311772871,1705384260733,-642.22,0.00022698,2]
[311772872,1705384260743,-510.5,0.00022698,2]
[311772873,1705384260752,-500.0,0.00022698,2]
[311772874,1705384260762,-500.0,0.00022698,2]
[311772875,1705384260772,-500.0,0.00022698,2]
[311772876,1705384260782,-704.48,0.00022698,2]
[311772877,1705384260791,-500.0,0.00022698,2]
[311772878,1705384260801,-658.03,0.00022698,2]
[311772879,1705384260810,-500.0,0.00022698,2]
[311772880,1705384260820,-1010.31,0.00022698,2]
[311772881,1705384260830,-1182.94,0.00022698,2]
[311772882,1705384260841,-500.0,0.00022698,2]
[311772883,1705384260850,-602.18,0.00022698,2]
[311772884,1705384260860,-500.0,0.00022698,2]
[311772885,1705384260869,-250.0,0.00022698,2]
[311772886,1705384260879,-500.0,0.00022698,2]
[311772887,1705384260889,-685.86,0.00022698,2]
[311772888,1705384260898,-500.0,0.00022698,2]
[311772889,1705384260908,-500.0,0.00022698,2]
[311772890,1705384260917,-598.25,0.00022698,2]
[311772891,1705384260926,-500.0,0.00022698,2]
[311772892,1705384260935,-562.57,0.00022698,2]
[311772893,1705384260945,-500.0,0.00022698,2]
[311772894,1705384260955,-500.0,0.00022698,2]
[311772895,1705384260965,-500.0,0.00022698,2]
[311772896,1705384260974,-500.0,0.00022698,2]
[311772897,1705384260984,-500.0,0.00022698,2]
[311772898,1705384260993,-872.57,0.00022698,2]
[311772899,1705384261003,-2332.79,0.00022698,2]
[311772900,1705384261013,-500.2,0.00022698,2]
[311772901,1705384261022,-502.31,0.00022698,2]
[311772902,1705384261031,-664.81,0.00022698,2]
[311772903,1705384261041,-769.03,0.00022698,2]
[311772904,1705384261051,-526.43,0.00022698,2]
[311772905,1705384261060,-705.3,0.00022698,2]
[311772906,1705384261069,-500.0,0.00022698,2]
[311772907,1705384261079,-712.78,0.00022698,2]
[311772908,1705384261090,-624.95,0.00022698,2]
[311772909,1705384261100,-549.13,0.00022698,2]
[311772910,1705384261109,-1039.81,0.00022698,2]
[311772911,1705384261122,-507.84,0.00022698,2]
[311772912,1705384261142,-951.31,0.00022698,2]
[311772913,1705384261151,-1077.66,0.00022698,2]
[311772914,1705384261162,-500.0,0.00022698,2]
[311772915,1705384261171,-782.39,0.00022698,2]
[311772916,1705384261181,-500.0,0.00022698,2]
[311772917,1705384261190,-3586.75,0.00022698,2]
[311772918,1705384261200,-500.0,0.00022698,2]
[311772919,1705384261210,-578.43,0.00022698,2]
[311772920,1705384261220,-909.2,0.00022698,2]
[311772921,1705384261230,-199.29867303,0.00022698,2]
[311772922,1705384261239,-500.0,0.00022698,2]
[311772923,1705384261249,-500.0,0.00022698,2]
[311772924,1705384261258,-962.94,0.00022698,2]
[311772925,1705384261267,-500.0,0.00022698,2]
[311772926,1705384261277,-705.28,0.00022698,2]
[311772927,1705384261286,-566.56,0.00022698,2]
[311772928,1705384261296,-558.22,0.00022698,2]
[311772929,1705384261305,-500.0,0.00022698,2]
[311772930,1705384261315,-725.41,0.00022698,2]
[311772931,1705384261324,-759.41,0.00022698,2]
[311772932,1705384261336,-631.13,0.00022698,2]
[311772933,1705384261345,-500.0,0.00022698,2]
[311772934,1705384261355,-1045.35,0.00022698,2]
[311772935,1705384261365,-500.0,0.00022698,2]
[311772936,1705384261374,-500.0,0.00022698,2]
[311772937,1705384261383,-507.13206061,0.00022698,2]
[311772938,1705384261393,-1784.34,0.00022698,2]
[311772939,1705384261403,-500.0,0.00022698,2]
[311772940,1705384261413,-528.58,0.00022698,2]
[311772941,1705384261425,-556.53,0.00022698,2]
[311772942,1705384261435,-598.96,0.00022698,2]
[311772943,1705384261446,-500.0,0.00022698,2]
[311772944,1705384261456,-500.0,0.00022698,2]
[311772945,1705384261467,-500.0,0.00022698,2]
[311772946,1705384261477,-500.0,0.00022698,2]
[311772947,1705384261487,-600.0,0.00022698,2]
[311772948,1705384261497,-747.84,0.00022698,2]
[311772949,1705384261507,-500.0,0.00022698,2]
[311772950,1705384261517,-500.0,0.00022698,2]
[311772951,1705384261527,-635.16,0.00022698,2]
[311772952,1705384261538,-615.97,0.00022698,2]
[311772953,1705384261548,-500.0,0.00022698,2]
[311772954,1705384261559,-500.0,0.00022698,2]
[311772955,1705384261568,-1341.08,0.00022698,2]
[311772956,1705384261578,-624.42,0.00022698,2]
[311772957,1705384261588,-500.0,0.00022698,2]
[311772958,1705384261597,-500.0,0.00022698,2]
[311772959,1705384261606,-500.0,0.00022698,2]
[311772960,1705384261615,-1041.55,0.00022698,2]
[311772961,1705384261625,-713.19,0.00022698,2]
[311772962,1705384261634,-825.53,0.00022698,2]
[311772963,1705384261644,-500.0,0.00022698,2]
[311772964,1705384261653,-500.0,0.00022698,2]
[311772965,1705384261663,-500.0,0.00022698,2]
[311772966,1705384261672,-1011.96,0.00022698,2]
[311772967,1705384261681,-500.0,0.00022698,2]
[311772968,1705384261690,-500.0,0.00022698,2]
[311772969,1705384261700,-511.91,0.00022698,2]
[311772970,1705384261710,-832.41,0.00022698,2]
[311772971,1705384261720,-500.0,0.00022698,2]
[311772972,1705384261731,-684.84,0.00022698,2]
[311772973,1705384261742,-500.0,0.00022698,2]
[311772974,1705384261752,-500.0,0.00022698,2]
[311772975,1705384261763,-1102.65,0.00022698,2]
[311772976,1705384261773,-594.9,0.00022698,2]
[311772977,1705384261783,-618.23395602,0.00022698,2]
[311772978,1705384261793,-2298.13,0.00022698,2]
[311772979,1705384261803,-500.0,0.00022698,2]
[311772980,1705384261813,-574.47,0.00022698,2]
[311772981,1705384261823,-502.31553912,0.00022698,2]
[311772982,1705384261833,-500.0,0.00022698,2]
[311772983,1705384261842,-835.15,0.00022698,2]
[311772984,1705384261852,-525.33,0.00022698,2]
[311772985,1705384261861,-540.3,0.00022698,2]
[311772986,1705384261871,-603.45,0.00022698,2]
[311772987,1705384261884,-500.0,0.00022698,2]
[311772988,1705384261897,-500.0,0.00022698,2]
[311772989,1705384261907,-500.0,0.00022698,2]